[Event "Titled Tuesday Blitz May 4 2021"]
[White "elohunter1999"]
[Black "Kanyamarala, Tarun"]
[BlackFideId "45004714"]
[WhiteElo "2495"]
[BlackElo "2086"]
[Result "1-0"]
[Round "05"]
[TimeControl "180+1"]
[Date "2021.05.04"]
[WhiteClock "0:00:21"]
[BlackClock "0:00:01"]

1. d4 {[%clk 0:03:00]}  d5 {[%clk 0:02:52]} 2. c4 {[%clk 0:03:00]}  c6 {[%clk 0:02:52]} 3. Nf3 {[%clk 0:02:59]}  Nf6 {[%clk 0:02:52]} 4. e3 {[%clk 0:02:59]}  e6 {[%clk 0:02:48]} 5. b3 {[%clk 0:02:59]}  Nbd7 {[%clk 0:02:45]} 6. Bd3 {[%clk 0:02:58]}  Bd6 {[%clk 0:02:41]} 7. Bb2 {[%clk 0:02:54]}  Ne4 {[%clk 0:02:40]} 8. O-O {[%clk 0:02:46]}  f5 {[%clk 0:02:39]} 9. Nc3 {[%clk 0:02:46]}  O-O {[%clk 0:02:39]} 10. Ne2 {[%clk 0:02:46]}  g5 {[%clk 0:02:32]} 11. Ne5 {[%clk 0:02:45]}  Nxe5 {[%clk 0:02:26]} 12. dxe5 {[%clk 0:02:43]}  Bc5 {[%clk 0:02:26]} 13. Bd4 {[%clk 0:02:26]}  Bxd4 {[%clk 0:02:14]} 14. exd4 {[%clk 0:02:24]}  g4 {[%clk 0:02:05]} 15. Qc1 {[%clk 0:02:19]}  Kg7 {[%clk 0:01:41]} 16. Qf4 {[%clk 0:02:15]}  Qg5 {[%clk 0:01:38]} 17. f3 {[%clk 0:02:11]}  gxf3 {[%clk 0:01:30]} 18. Rxf3 {[%clk 0:01:58]}  Qxf4 {[%clk 0:01:19]} 19. Nxf4 {[%clk 0:01:56]}  Bd7 {[%clk 0:01:19]} 20. Bxe4 {[%clk 0:01:40]}  fxe4 {[%clk 0:01:18]} 21. Rg3+ {[%clk 0:01:40]}  Kh8 {[%clk 0:01:18]} 22. Nh5 {[%clk 0:01:40]}  Be8 {[%clk 0:01:06]} 23. Nf6 {[%clk 0:01:35]}  Bg6 {[%clk 0:01:06]} 24. Rf1 {[%clk 0:01:32]}  Rad8 {[%clk 0:01:00]} 25. c5 {[%clk 0:01:31]}  Rf7 {[%clk 0:00:50]} 26. Rf4 {[%clk 0:01:28]}  Rg8 {[%clk 0:00:31]} 27. Rh4 {[%clk 0:01:13]}  Rgg7 {[%clk 0:00:31]} 28. Kf2 {[%clk 0:00:59]}  e3+ {[%clk 0:00:12]} 29. Kxe3 {[%clk 0:00:58]}  Bf5 {[%clk 0:00:10]} 30. Rxg7 {[%clk 0:00:54]}  Rxg7 {[%clk 0:00:11]} 31. g4 {[%clk 0:00:54]}  Bb1 {[%clk 0:00:10]} 32. a3 {[%clk 0:00:53]}  Bc2 {[%clk 0:00:04]} 33. b4 {[%clk 0:00:53]}  Bg6 {[%clk 0:00:03]} 34. Kf4 {[%clk 0:00:53]}  b6 {[%clk 0:00:03]} 35. Kg5 {[%clk 0:00:47]}  bxc5 {[%clk 0:00:02]} 36. bxc5 {[%clk 0:00:47]}  Rb7 {[%clk 0:00:02]} 37. Rh3 {[%clk 0:00:37]}  Rb2 {[%clk 0:00:02]} 38. a4 {[%clk 0:00:21]}  Ra2 {[%clk 0:00:01]} 39. Rb3 {[%clk 0:00:21]}  Rxa4 {[%clk 0:00:01]} 40. Kh6 {[%clk 0:00:21]} 1-0


[Site "https://www.chess.com"]

[Event "Titled Tuesday Blitz May 4 2021"]
[White "katchesskat"]
[Black "Piccoli, Lucas Fonseca"]
[BlackFideId "2190788"]
[WhiteElo "2269"]
[BlackElo "1776"]
[Result "1/2-1/2"]
[Round "05"]
[TimeControl "180+1"]
[Date "2021.05.04"]
[WhiteClock "0:00:12"]
[BlackClock "0:00:04"]

1. c4 {[%clk 0:01:32]}  Nf6 {[%clk 0:02:57]} 2. e3 {[%clk 0:01:32]}  e6 {[%clk 0:02:57]} 3. a3 {[%clk 0:01:32]}  d5 {[%clk 0:02:58]} 4. Qc2 {[%clk 0:01:32]}  Be7 {[%clk 0:02:59]} 5. Nf3 {[%clk 0:01:33]}  O-O {[%clk 0:02:59]} 6. b4 {[%clk 0:01:33]}  a5 {[%clk 0:02:59]} 7. bxa5 {[%clk 0:01:33]}  Rxa5 {[%clk 0:02:58]} 8. Bb2 {[%clk 0:01:34]}  c5 {[%clk 0:02:50]} 9. Be2 {[%clk 0:01:33]}  Nc6 {[%clk 0:02:49]} 10. O-O {[%clk 0:01:33]}  d4 {[%clk 0:02:43]} 11. exd4 {[%clk 0:01:32]}  cxd4 {[%clk 0:02:44]} 12. Bd3 {[%clk 0:01:27]}  Rh5 {[%clk 0:02:40]} 13. Re1 {[%clk 0:01:23]}  e5 {[%clk 0:02:39]} 14. h3 {[%clk 0:00:59]}  Qc7 {[%clk 0:02:05]} 15. Qd1 {[%clk 0:00:49]}  Bd6 {[%clk 0:01:25]} 16. Qe2 {[%clk 0:00:43]}  Re8 {[%clk 0:01:08]} 17. Bc2 {[%clk 0:00:41]}  e4 {[%clk 0:00:58]} 18. Nxd4 {[%clk 0:00:40]}  Ne5 {[%clk 0:00:35]} 19. Nb5 {[%clk 0:00:35]}  Nf3+ {[%clk 0:00:17]} 20. Qxf3 {[%clk 0:00:33]}  exf3 {[%clk 0:00:17]} 21. Rxe8+ {[%clk 0:00:30]}  Nxe8 {[%clk 0:00:16]} 22. Nxc7 {[%clk 0:00:30]}  Nxc7 {[%clk 0:00:14]} 23. d4 {[%clk 0:00:26]}  fxg2 {[%clk 0:00:13]} 24. Kxg2 {[%clk 0:00:25]}  Rg5+ {[%clk 0:00:11]} 25. Kf3 {[%clk 0:00:23]}  Bxh3 {[%clk 0:00:09]} 26. Nd2 {[%clk 0:00:20]}  Bg4+ {[%clk 0:00:08]} 27. Ke3 {[%clk 0:00:20]}  Ne6 {[%clk 0:00:07]} 28. Ne4 {[%clk 0:00:20]}  Bf4+ {[%clk 0:00:06]} 29. Kd3 {[%clk 0:00:20]}  Rh5 {[%clk 0:00:05]} 30. Rg1 {[%clk 0:00:20]}  Rh3+ {[%clk 0:00:04]} 31. Ng3 {[%clk 0:00:17]}  f5 {[%clk 0:00:03]} 32. d5 {[%clk 0:00:14]}  Nc5+ {[%clk 0:00:03]} 33. Kd4 {[%clk 0:00:14]}  Nd7 {[%clk 0:00:03]} 34. c5 {[%clk 0:00:14]}  Be5+ {[%clk 0:00:03]} 35. Kc4 {[%clk 0:00:14]}  Bxb2 {[%clk 0:00:04]} 36. Nxf5 {[%clk 0:00:13]}  Ne5+ {[%clk 0:00:05]} 37. Kb5 {[%clk 0:00:13]}  Bxf5 {[%clk 0:00:02]} 38. Bxf5 {[%clk 0:00:12]}  Rf3 {[%clk 0:00:03]} 39. Be6+ {[%clk 0:00:12]}  Kf8 {[%clk 0:00:03]} 40. d6 {[%clk 0:00:12]}  Rxf2 {[%clk 0:00:03]} 41. Rh1 {[%clk 0:00:12]}  h6 {[%clk 0:00:03]} 42. Rb1 {[%clk 0:00:11]}  g5 {[%clk 0:00:02]} 43. a4 {[%clk 0:00:11]}  g4 {[%clk 0:00:03]} 44. a5 {[%clk 0:00:11]}  g3 {[%clk 0:00:03]} 45. a6 {[%clk 0:00:12]}  bxa6+ {[%clk 0:00:04]} 46. Kxa6 {[%clk 0:00:12]}  g2 {[%clk 0:00:05]} 47. c6 {[%clk 0:00:12]}  Rf1 {[%clk 0:00:05]} 48. c7 {[%clk 0:00:11]}  g1=Q {[%clk 0:00:03]} 49. c8=Q+ {[%clk 0:00:11]}  Kg7 {[%clk 0:00:04]} 50. Qg8+ {[%clk 0:00:11]}  Kf6 {[%clk 0:00:04]} 51. Qxg1 {[%clk 0:00:11]}  Rxg1 {[%clk 0:00:04]} 52. Rxg1 {[%clk 0:00:12]}  Kxe6 {[%clk 0:00:05]} 53. Rd1 {[%clk 0:00:12]}  Ba3 {[%clk 0:00:05]} 54. d7 {[%clk 0:00:11]}  Nxd7 {[%clk 0:00:05]} 55. Rh1 {[%clk 0:00:12]}  Bf8 {[%clk 0:00:05]} 56. Rf1 {[%clk 0:00:11]}  Nf6 {[%clk 0:00:04]} 57. Kb5 {[%clk 0:00:11]}  h5 {[%clk 0:00:03]} 58. Kc4 {[%clk 0:00:11]}  Ke5 {[%clk 0:00:04]} 59. Kd3 {[%clk 0:00:11]}  Bh6 {[%clk 0:00:04]} 60. Ke2 {[%clk 0:00:11]}  Bf4 {[%clk 0:00:03]} 61. Kf3 {[%clk 0:00:11]}  Kf5 {[%clk 0:00:03]} 62. Kg2 {[%clk 0:00:11]}  Ng4 {[%clk 0:00:03]} 63. Kh3 {[%clk 0:00:10]}  Kg5 {[%clk 0:00:03]} 64. Rf3 {[%clk 0:00:10]}  Ne3 {[%clk 0:00:03]} 65. Rxe3 {[%clk 0:00:09]}  Bxe3 {[%clk 0:00:03]} 66. Kg3 {[%clk 0:00:09]}  h4+ {[%clk 0:00:03]} 67. Kh3 {[%clk 0:00:10]}  Kh5 {[%clk 0:00:04]} 68. Kh2 {[%clk 0:00:11]}  Kg4 {[%clk 0:00:05]} 69. Kh1 {[%clk 0:00:12]}  Kg3 {[%clk 0:00:04]} 1/2-1/2


[Site "https://www.chess.com"]

[Event "Titled Tuesday Blitz May 4 2021"]
[White "tylityli"]
[Black "Sieciechowicz, Marcin"]
[BlackFideId "1130170"]
[WhiteElo "2330"]
[BlackElo "2288"]
[Result "0-1"]
[Round "05"]
[TimeControl "180+1"]
[Date "2021.05.04"]
[WhiteClock "0:00:05"]
[BlackClock "0:00:14"]

1. d4 {[%clk 0:02:31]}  Nf6 {[%clk 0:02:58]} 2. c4 {[%clk 0:02:31]}  g6 {[%clk 0:02:58]} 3. Nc3 {[%clk 0:02:31]}  d5 {[%clk 0:02:58]} 4. cxd5 {[%clk 0:02:30]}  Nxd5 {[%clk 0:02:59]} 5. Bd2 {[%clk 0:02:31]}  Bg7 {[%clk 0:02:57]} 6. e4 {[%clk 0:02:30]}  Nxc3 {[%clk 0:02:57]} 7. Bxc3 {[%clk 0:02:30]}  O-O {[%clk 0:02:58]} 8. Be2 {[%clk 0:02:27]}  c5 {[%clk 0:02:57]} 9. d5 {[%clk 0:02:26]}  Bxc3+ {[%clk 0:02:57]} 10. bxc3 {[%clk 0:02:27]}  Qd6 {[%clk 0:02:56]} 11. Nf3 {[%clk 0:02:22]}  Nd7 {[%clk 0:02:54]} 12. O-O {[%clk 0:02:20]}  e5 {[%clk 0:02:23]} 13. c4 {[%clk 0:02:10]}  f6 {[%clk 0:02:18]} 14. Qd2 {[%clk 0:02:07]}  Kh8 {[%clk 0:02:04]} 15. h4 {[%clk 0:02:06]}  f5 {[%clk 0:01:59]} 16. Ng5 {[%clk 0:01:41]}  Nf6 {[%clk 0:01:50]} 17. exf5 {[%clk 0:01:28]}  gxf5 {[%clk 0:01:44]} 18. f4 {[%clk 0:01:27]}  e4 {[%clk 0:01:31]} 19. Qc3 {[%clk 0:01:21]}  h6 {[%clk 0:01:21]} 20. Rad1 {[%clk 0:01:02]}  Kg7 {[%clk 0:01:15]} 21. g4 {[%clk 0:00:44]}  hxg5 {[%clk 0:00:38]} 22. hxg5 {[%clk 0:00:41]}  fxg4 {[%clk 0:00:37]} 23. gxf6+ {[%clk 0:00:19]}  Qxf6 {[%clk 0:00:28]} 24. Qe5 {[%clk 0:00:18]}  Bf5 {[%clk 0:00:17]} 25. Kg2 {[%clk 0:00:10]}  Kg6 {[%clk 0:00:17]} 26. Kg3 {[%clk 0:00:08]}  Rae8 {[%clk 0:00:15]} 27. Qxf6+ {[%clk 0:00:06]}  Kxf6 {[%clk 0:00:14]} 28. Rh1 {[%clk 0:00:05]}  Rh8 {[%clk 0:00:14]} 0-1


[Site "https://www.chess.com"]

[Event "Titled Tuesday Blitz May 4 2021"]
[White "zmeeed67"]
[Black "Kaufman, Raymond"]
[BlackFideId "2015056"]
[WhiteElo "2559"]
[BlackElo "2321"]
[Result "1-0"]
[Round "05"]
[TimeControl "180+1"]
[Date "2021.05.04"]
[WhiteClock "0:00:33"]
[BlackClock "0:00:32"]

1. d4 {[%clk 0:03:00]}  Nf6 {[%clk 0:02:56]} 2. c4 {[%clk 0:02:53]}  e6 {[%clk 0:02:55]} 3. Nc3 {[%clk 0:02:53]}  Bb4 {[%clk 0:02:54]} 4. f3 {[%clk 0:02:53]}  c5 {[%clk 0:02:44]} 5. d5 {[%clk 0:02:52]}  b5 {[%clk 0:02:42]} 6. e4 {[%clk 0:02:51]}  d6 {[%clk 0:02:42]} 7. Bd2 {[%clk 0:02:51]}  bxc4 {[%clk 0:02:35]} 8. Bxc4 {[%clk 0:02:51]}  O-O {[%clk 0:02:31]} 9. Nge2 {[%clk 0:02:49]}  exd5 {[%clk 0:02:09]} 10. Nxd5 {[%clk 0:02:49]}  Bxd2+ {[%clk 0:02:09]} 11. Qxd2 {[%clk 0:02:50]}  Nbd7 {[%clk 0:02:08]} 12. O-O {[%clk 0:02:48]}  Ne5 {[%clk 0:02:08]} 13. Nxf6+ {[%clk 0:02:45]}  Qxf6 {[%clk 0:02:06]} 14. Bd5 {[%clk 0:02:45]}  Rb8 {[%clk 0:02:07]} 15. Nc3 {[%clk 0:02:44]}  Be6 {[%clk 0:02:01]} 16. Rfd1 {[%clk 0:02:39]}  Rfd8 {[%clk 0:01:44]} 17. b3 {[%clk 0:02:38]}  Rb4 {[%clk 0:01:37]} 18. Qe3 {[%clk 0:02:29]}  Rd4 {[%clk 0:01:34]} 19. Nb5 {[%clk 0:02:21]}  Bxd5 {[%clk 0:01:28]} 20. Nxd4 {[%clk 0:01:59]}  cxd4 {[%clk 0:01:26]} 21. Qxd4 {[%clk 0:02:00]}  Be6 {[%clk 0:01:24]} 22. Qxa7 {[%clk 0:02:00]}  Nxf3+ {[%clk 0:01:18]} 23. gxf3 {[%clk 0:02:01]}  Qxf3 {[%clk 0:01:18]} 24. Qf2 {[%clk 0:01:51]}  Qxe4 {[%clk 0:01:18]} 25. Rd4 {[%clk 0:01:50]}  Qg6+ {[%clk 0:01:18]} 26. Qg3 {[%clk 0:01:46]}  Qc2 {[%clk 0:01:08]} 27. Qg2 {[%clk 0:01:32]}  Qc5 {[%clk 0:01:04]} 28. Rd1 {[%clk 0:01:32]}  h5 {[%clk 0:01:02]} 29. h3 {[%clk 0:01:28]}  g6 {[%clk 0:01:01]} 30. Rd2 {[%clk 0:01:25]}  Qc1+ {[%clk 0:01:00]} 31. Kh2 {[%clk 0:01:23]}  Qe1 {[%clk 0:01:00]} 32. b4 {[%clk 0:00:55]}  h4 {[%clk 0:00:52]} 33. Qf2 {[%clk 0:00:46]}  Qe5+ {[%clk 0:00:52]} 34. Qf4 {[%clk 0:00:45]}  Rb8 {[%clk 0:00:34]} 35. Qxe5 {[%clk 0:00:42]}  dxe5 {[%clk 0:00:35]} 36. Rd8+ {[%clk 0:00:43]}  Rxd8 {[%clk 0:00:34]} 37. Rxd8+ {[%clk 0:00:44]}  Kg7 {[%clk 0:00:35]} 38. b5 {[%clk 0:00:39]}  e4 {[%clk 0:00:35]} 39. Kg2 {[%clk 0:00:37]}  e3 {[%clk 0:00:32]} 40. b6 {[%clk 0:00:33]} 1-0


[Site "https://www.chess.com"]

[Event "Titled Tuesday Blitz May 4 2021"]
[White "Abdalla, Luiz Guilherme Aurelli"]
[Black "Minaya, Juan"]
[WhiteFideId "2111080"]
[BlackFideId "4400283"]
[WhiteElo "2152"]
[BlackElo "1848"]
[Result "1-0"]
[Round "06"]
[TimeControl "180+1"]
[Date "2021.05.04"]
[WhiteClock "0:01:53"]
[BlackClock "0:00:04"]

1. d4 {[%clk 0:03:00]}  g6 {[%clk 0:02:58]} 2. c4 {[%clk 0:03:01]}  Bg7 {[%clk 0:02:57]} 3. Nc3 {[%clk 0:03:02]}  d6 {[%clk 0:02:57]} 4. e4 {[%clk 0:03:02]}  Nd7 {[%clk 0:02:56]} 5. Be2 {[%clk 0:03:02]}  e5 {[%clk 0:02:54]} 6. Nf3 {[%clk 0:03:01]}  Nh6 {[%clk 0:02:44]} 7. Bg5 {[%clk 0:02:55]}  f6 {[%clk 0:02:42]} 8. Bh4 {[%clk 0:02:51]}  c6 {[%clk 0:02:36]} 9. O-O {[%clk 0:02:50]}  Nf7 {[%clk 0:02:33]} 10. dxe5 {[%clk 0:02:43]}  dxe5 {[%clk 0:02:29]} 11. b4 {[%clk 0:02:37]}  Qe7 {[%clk 0:02:19]} 12. c5 {[%clk 0:02:35]}  b5 {[%clk 0:02:12]} 13. a4 {[%clk 0:02:32]}  bxa4 {[%clk 0:02:03]} 14. Rxa4 {[%clk 0:02:32]}  Nf8 {[%clk 0:01:31]} 15. Qb3 {[%clk 0:02:23]}  Ne6 {[%clk 0:01:26]} 16. Bc4 {[%clk 0:02:22]}  O-O {[%clk 0:01:15]} 17. Rfa1 {[%clk 0:02:19]}  Nd4 {[%clk 0:00:42]} 18. Nxd4 {[%clk 0:02:01]}  exd4 {[%clk 0:00:41]} 19. Ne2 {[%clk 0:02:01]}  Qxe4 {[%clk 0:00:34]} 20. Bg3 {[%clk 0:02:01]}  Qe7 {[%clk 0:00:24]} 21. Nxd4 {[%clk 0:01:58]}  a6 {[%clk 0:00:10]} 22. Nxc6 {[%clk 0:01:57]}  Qb7 {[%clk 0:00:04]} 23. Bd5 {[%clk 0:01:53]} 1-0


[Site "https://www.chess.com"]

[Event "Titled Tuesday Blitz May 4 2021"]
[White "Abdisalimov, Abdimalik"]
[Black "Saraci, Nderim"]
[WhiteFideId "14206323"]
[BlackFideId "6351921"]
[WhiteElo "2389"]
[BlackElo "2486"]
[Result "1-0"]
[Round "06"]
[TimeControl "180+1"]
[Date "2021.05.04"]
[WhiteClock "0:00:18"]
[BlackClock "0:00:03"]

1. e4 {[%clk 0:03:00]}  e5 {[%clk 0:02:59]} 2. Nf3 {[%clk 0:02:59]}  Nc6 {[%clk 0:02:59]} 3. Bb5 {[%clk 0:02:59]}  Nf6 {[%clk 0:02:58]} 4. O-O {[%clk 0:02:57]}  Nxe4 {[%clk 0:02:58]} 5. Re1 {[%clk 0:02:55]}  Nd6 {[%clk 0:02:57]} 6. Nxe5 {[%clk 0:02:54]}  Be7 {[%clk 0:02:57]} 7. Nxc6 {[%clk 0:02:53]}  dxc6 {[%clk 0:02:57]} 8. Bf1 {[%clk 0:02:50]}  O-O {[%clk 0:02:56]} 9. d4 {[%clk 0:02:49]}  Nf5 {[%clk 0:02:54]} 10. c3 {[%clk 0:02:48]}  Be6 {[%clk 0:02:52]} 11. Nd2 {[%clk 0:02:46]}  c5 {[%clk 0:02:51]} 12. dxc5 {[%clk 0:02:39]}  Bxc5 {[%clk 0:02:49]} 13. Ne4 {[%clk 0:02:39]}  Qxd1 {[%clk 0:02:36]} 14. Rxd1 {[%clk 0:02:40]}  Bb6 {[%clk 0:02:32]} 15. Bf4 {[%clk 0:02:38]}  h6 {[%clk 0:02:29]} 16. c4 {[%clk 0:02:31]}  c5 {[%clk 0:02:03]} 17. a4 {[%clk 0:02:26]}  a5 {[%clk 0:01:53]} 18. Nc3 {[%clk 0:02:03]}  Rac8 {[%clk 0:01:22]} 19. Nd5 {[%clk 0:02:00]}  Bd8 {[%clk 0:01:22]} 20. h3 {[%clk 0:01:55]}  Re8 {[%clk 0:01:12]} 21. g4 {[%clk 0:01:50]}  Nd4 {[%clk 0:01:10]} 22. Rac1 {[%clk 0:01:45]}  Bg5 {[%clk 0:01:00]} 23. Bxg5 {[%clk 0:01:37]}  hxg5 {[%clk 0:01:01]} 24. Bd3 {[%clk 0:01:31]}  Rcd8 {[%clk 0:00:44]} 25. Ne3 {[%clk 0:01:15]}  Bd7 {[%clk 0:00:43]} 26. Ra1 {[%clk 0:01:10]}  Bc6 {[%clk 0:00:40]} 27. Bf1 {[%clk 0:00:51]}  Nf3+ {[%clk 0:00:27]} 28. Kh1 {[%clk 0:00:50]}  Rd2 {[%clk 0:00:25]} 29. Rxd2 {[%clk 0:00:45]}  Nxd2+ {[%clk 0:00:26]} 30. Bg2 {[%clk 0:00:46]}  Ne4 {[%clk 0:00:20]} 31. Kg1 {[%clk 0:00:42]}  Rd8 {[%clk 0:00:19]} 32. Rd1 {[%clk 0:00:40]}  Rd4 {[%clk 0:00:16]} 33. Rxd4 {[%clk 0:00:37]}  cxd4 {[%clk 0:00:17]} 34. Nf5 {[%clk 0:00:38]}  d3 {[%clk 0:00:14]} 35. Ne7+ {[%clk 0:00:35]}  Kf8 {[%clk 0:00:13]} 36. Nxc6 {[%clk 0:00:35]}  d2 {[%clk 0:00:12]} 37. Bf3 {[%clk 0:00:35]}  bxc6 {[%clk 0:00:12]} 38. Kf1 {[%clk 0:00:35]}  Nc5 {[%clk 0:00:12]} 39. Ke2 {[%clk 0:00:34]}  Nxa4 {[%clk 0:00:11]} 40. Kxd2 {[%clk 0:00:35]}  Nxb2 {[%clk 0:00:11]} 41. Kc3 {[%clk 0:00:35]}  Na4+ {[%clk 0:00:11]} 42. Kd4 {[%clk 0:00:35]}  c5+ {[%clk 0:00:11]} 43. Kd5 {[%clk 0:00:35]}  Ke7 {[%clk 0:00:10]} 44. Kc6 {[%clk 0:00:36]}  Nb2 {[%clk 0:00:08]} 45. Kxc5 {[%clk 0:00:33]}  a4 {[%clk 0:00:08]} 46. Be4 {[%clk 0:00:30]}  a3 {[%clk 0:00:07]} 47. Bb1 {[%clk 0:00:30]}  Nd3+ {[%clk 0:00:07]} 48. Kb6 {[%clk 0:00:30]}  Nb4 {[%clk 0:00:07]} 49. c5 {[%clk 0:00:27]}  a2 {[%clk 0:00:07]} 50. Bxa2 {[%clk 0:00:24]}  Nxa2 {[%clk 0:00:08]} 51. c6 {[%clk 0:00:25]}  Nb4 {[%clk 0:00:07]} 52. c7 {[%clk 0:00:24]}  Nd5+ {[%clk 0:00:03]} 53. Kc6 {[%clk 0:00:24]}  Nxc7 {[%clk 0:00:04]} 54. Kxc7 {[%clk 0:00:24]}  Ke6 {[%clk 0:00:04]} 55. Kc6 {[%clk 0:00:20]}  Ke5 {[%clk 0:00:04]} 56. Kd7 {[%clk 0:00:20]}  Ke4 {[%clk 0:00:03]} 57. Ke7 {[%clk 0:00:18]}  Kf3 {[%clk 0:00:04]} 58. Kxf7 {[%clk 0:00:16]}  Kxf2 {[%clk 0:00:05]} 59. Kxg7 {[%clk 0:00:17]}  Kg3 {[%clk 0:00:05]} 60. Kg6 {[%clk 0:00:18]}  Kxh3 {[%clk 0:00:03]} 61. Kxg5 {[%clk 0:00:18]} 1-0


[Site "https://www.chess.com"]

[Event "Titled Tuesday Blitz May 4 2021"]
[White "Abdusattorov, Nodirbek"]
[Black "Shyaamnikhil P"]
[WhiteFideId "14204118"]
[BlackFideId "5024218"]
[WhiteElo "2662"]
[BlackElo "2300"]
[Result "0-1"]
[Round "06"]
[TimeControl "180+1"]
[Date "2021.05.04"]
[WhiteClock "0:00:10"]
[BlackClock "0:01:13"]

1. d4 {[%clk 0:03:00]}  d5 {[%clk 0:02:59]} 2. Nf3 {[%clk 0:02:59]}  Nf6 {[%clk 0:02:57]} 3. Bf4 {[%clk 0:02:59]}  a6 {[%clk 0:02:49]} 4. e3 {[%clk 0:02:59]}  e6 {[%clk 0:02:48]} 5. c4 {[%clk 0:02:58]}  dxc4 {[%clk 0:02:46]} 6. Bxc4 {[%clk 0:02:57]}  b5 {[%clk 0:02:47]} 7. Bb3 {[%clk 0:02:58]}  Bb7 {[%clk 0:02:47]} 8. O-O {[%clk 0:02:58]}  Bd6 {[%clk 0:02:47]} 9. Bg3 {[%clk 0:02:56]}  Ne4 {[%clk 0:02:45]} 10. Nc3 {[%clk 0:02:49]}  Nxg3 {[%clk 0:02:44]} 11. hxg3 {[%clk 0:02:50]}  O-O {[%clk 0:02:43]} 12. Rc1 {[%clk 0:02:49]}  Nd7 {[%clk 0:02:42]} 13. Bc2 {[%clk 0:02:46]}  g6 {[%clk 0:02:41]} 14. Be4 {[%clk 0:02:45]}  c6 {[%clk 0:02:39]} 15. Nd2 {[%clk 0:02:37]}  Rc8 {[%clk 0:02:28]} 16. a3 {[%clk 0:02:28]}  Qb6 {[%clk 0:02:25]} 17. b4 {[%clk 0:02:28]}  a5 {[%clk 0:02:23]} 18. Qb3 {[%clk 0:02:06]}  axb4 {[%clk 0:02:21]} 19. axb4 {[%clk 0:02:07]}  Nf6 {[%clk 0:02:20]} 20. Bf3 {[%clk 0:02:04]}  Nd5 {[%clk 0:02:20]} 21. Nde4 {[%clk 0:02:04]}  Bxb4 {[%clk 0:02:14]} 22. Nxd5 {[%clk 0:02:04]}  cxd5 {[%clk 0:02:14]} 23. Nf6+ {[%clk 0:02:03]}  Kg7 {[%clk 0:02:14]} 24. Nd7 {[%clk 0:02:03]}  Qd6 {[%clk 0:02:12]} 25. Nxf8 {[%clk 0:02:01]}  Rxf8 {[%clk 0:02:04]} 26. Be2 {[%clk 0:01:54]}  Ba3 {[%clk 0:02:01]} 27. Ra1 {[%clk 0:01:50]}  b4 {[%clk 0:02:00]} 28. Rxa3 {[%clk 0:01:49]}  bxa3 {[%clk 0:01:57]} 29. Qxb7 {[%clk 0:01:50]}  Rb8 {[%clk 0:01:54]} 30. Qa7 {[%clk 0:01:33]}  Rb2 {[%clk 0:01:54]} 31. Bd3 {[%clk 0:01:29]}  Qb4 {[%clk 0:01:44]} 32. Qc5 {[%clk 0:01:10]}  Qb3 {[%clk 0:01:43]} 33. Qc7 {[%clk 0:00:36]}  Qxd3 {[%clk 0:01:39]} 34. Qe5+ {[%clk 0:00:37]}  Kg8 {[%clk 0:01:39]} 35. Ra1 {[%clk 0:00:21]}  a2 {[%clk 0:01:33]} 36. Kh2 {[%clk 0:00:21]}  Qb3 {[%clk 0:01:26]} 37. e4 {[%clk 0:00:14]}  Rb1 {[%clk 0:01:20]} 38. exd5 {[%clk 0:00:13]}  Rxa1 {[%clk 0:01:18]} 39. d6 {[%clk 0:00:14]}  Rh1+ {[%clk 0:01:18]} 40. Kxh1 {[%clk 0:00:14]}  a1=Q+ {[%clk 0:01:18]} 41. Kh2 {[%clk 0:00:15]}  Qbd1 {[%clk 0:01:14]} 42. g4 {[%clk 0:00:09]}  Qaxd4 {[%clk 0:01:13]} 43. Qf6 {[%clk 0:00:10]}  Qxf6 {[%clk 0:01:13]} 0-1


[Site "https://www.chess.com"]

[Event "Titled Tuesday Blitz May 4 2021"]
[White "Acor, Corey"]
[Black "Mamedyarov, Shakhriyar"]
[WhiteFideId "2024861"]
[BlackFideId "13401319"]
[WhiteElo "2752"]
[BlackElo "2716"]
[Result "0-1"]
[Round "06"]
[TimeControl "180+1"]
[Date "2021.05.04"]
[WhiteClock "0:00:03"]
[BlackClock "0:00:22"]

1. e4 {[%clk 0:02:59]}  d5 {[%clk 0:02:58]} 2. exd5 {[%clk 0:02:59]}  Qxd5 {[%clk 0:02:59]} 3. Nc3 {[%clk 0:02:59]}  Qa5 {[%clk 0:02:59]} 4. g3 {[%clk 0:02:58]}  Nf6 {[%clk 0:02:59]} 5. Bg2 {[%clk 0:02:58]}  Nc6 {[%clk 0:02:57]} 6. h3 {[%clk 0:02:55]}  Bf5 {[%clk 0:02:52]} 7. Nf3 {[%clk 0:02:48]}  e5 {[%clk 0:02:50]} 8. d3 {[%clk 0:02:46]}  e4 {[%clk 0:02:39]} 9. dxe4 {[%clk 0:02:41]}  Nxe4 {[%clk 0:02:20]} 10. O-O {[%clk 0:02:39]}  Nxc3 {[%clk 0:02:21]} 11. bxc3 {[%clk 0:02:38]}  Be7 {[%clk 0:02:14]} 12. Re1 {[%clk 0:02:20]}  O-O {[%clk 0:02:12]} 13. Bb2 {[%clk 0:02:07]}  Rad8 {[%clk 0:02:08]} 14. Nd4 {[%clk 0:02:07]}  Bf6 {[%clk 0:02:03]} 15. Nxc6 {[%clk 0:01:46]}  bxc6 {[%clk 0:02:01]} 16. Qf3 {[%clk 0:01:46]}  Rb8 {[%clk 0:01:56]} 17. Ba3 {[%clk 0:01:27]}  Bxc3 {[%clk 0:01:35]} 18. Bxf8 {[%clk 0:01:24]}  Rxf8 {[%clk 0:01:36]} 19. Rec1 {[%clk 0:01:01]}  Bxa1 {[%clk 0:01:26]} 20. Rxa1 {[%clk 0:01:02]}  Bxc2 {[%clk 0:01:22]} 21. Qxc6 {[%clk 0:01:02]}  Ba4 {[%clk 0:01:22]} 22. Qe4 {[%clk 0:00:50]}  g6 {[%clk 0:01:16]} 23. Rc1 {[%clk 0:00:46]}  c6 {[%clk 0:01:15]} 24. Qe7 {[%clk 0:00:34]}  Qd2 {[%clk 0:01:04]} 25. Rc5 {[%clk 0:00:32]}  Qxa2 {[%clk 0:00:41]} 26. Qxa7 {[%clk 0:00:31]}  Qa1+ {[%clk 0:00:40]} 27. Kh2 {[%clk 0:00:30]}  Qd4 {[%clk 0:00:38]} 28. Qb6 {[%clk 0:00:25]}  Rd8 {[%clk 0:00:32]} 29. Kg1 {[%clk 0:00:13]}  Kg7 {[%clk 0:00:25]} 30. Bxc6 {[%clk 0:00:10]}  Rd6 {[%clk 0:00:24]} 31. h4 {[%clk 0:00:03]}  Rf6 {[%clk 0:00:22]} 0-1


[Site "https://www.chess.com"]